bitfinex/quotes_BTCUSD_20241128
["timestamp","ask_amount","ask_price","bid_price","bid_amount"]
[1732798640448,0.0008619,95564.0,95563.0,0.25619751]
[1732798640667,0.0008619,95564.0,95563.0,0.1154684]
[1732798640940,0.0008619,95564.0,95563.0,0.20926927]
[1732798642028,0.0008619,95564.0,95563.0,0.1154684]
[1732798642251,0.0008619,95564.0,95563.0,0.11732037]
[1732798642469,0.0008619,95564.0,95563.0,0.22626933]
[1732798642678,0.0008619,95564.0,95563.0,0.1324814]
[1732798642917,0.0008619,95564.0,95563.0,0.22626965]
[1732798643337,0.0008619,95564.0,95563.0,0.1324814]
[1732798643604,0.0008619,95564.0,95563.0,0.13248145]
[1732798645127,0.0008619,95564.0,95563.0,0.1154684]
[1732798645345,0.0008619,95564.0,95563.0,0.1144684]
[1732798645570,0.0008619,95564.0,95563.0,0.12501185]
[1732798645774,0.0008619,95564.0,95563.0,0.13733336]
[1732798647354,0.0008619,95564.0,95563.0,0.13548137]
[1732798647641,0.0008619,95564.0,95563.0,0.13733334]
[1732798649195,0.0008619,95564.0,95563.0,0.13548137]
[1732798650095,0.0008619,95564.0,95563.0,0.13733334]
[1732798651878,0.0008619,95564.0,95563.0,0.38266216]
[1732798652121,0.049,95577.0,95564.0,0.209283]
[1732798652334,0.049,95577.0,95572.0,0.18754695]
[1732798652540,0.049,95577.0,95573.0,0.65362966]
[1732798653188,0.049,95577.0,95573.0,0.60674549]
[1732798653410,0.049,95577.0,95573.0,0.11985818]
[1732798653613,0.049,95577.0,95573.0,0.26052096]
[1732798654073,0.049,95577.0,95573.0,0.11985818]
[1732798654505,0.049,95577.0,95573.0,0.12185818]
[1732798654963,0.049,95577.0,95573.0,0.26252096]
[1732798655210,0.049,95577.0,95573.0,0.12185818]
[1732798655662,0.623154,95575.0,95573.0,0.12185818]
[1732798655870,0.623154,95575.0,95573.0,0.13348713]
[1732798655871,0.518524,95575.0,95573.0,0.13348713]
[1732798656076,0.518524,95575.0,95573.0,0.27814991]
[1732798656765,0.518524,95575.0,95573.0,0.62434627]
[1732798657189,0.518524,95575.0,95573.0,0.62534627]
[1732798658280,0.518524,95575.0,95573.0,0.48468349]
[1732798658692,0.518524,95575.0,95573.0,0.27918687]
[1732798659141,0.518524,95575.0,95573.0,0.13848713]
[1732798659564,0.518524,95575.0,95573.0,0.48474642]
[1732798660443,0.518524,95575.0,95573.0,0.67232332]
[1732798661088,0.518524,95575.0,95573.0,0.77695327]
[1732798661525,0.518524,95575.0,95573.0,0.58937637]
[1732798661807,0.518524,95575.0,95573.0,0.82396808]
[1732798662026,0.518524,95575.0,95573.0,0.58937637]
[1732798662856,0.518524,95575.0,95573.0,0.58956527]
[1732798663990,0.518524,95575.0,95573.0,0.48493327]
[1732798664234,0.518524,95575.0,95573.0,0.58956527]
[1732798665086,0.518524,95575.0,95573.0,0.58972111]
[1732798667190,0.0004,95589.0,95580.0,0.104623]
[1732798667415,0.0004,95589.0,95583.0,0.09389256]
[1732798667628,0.0004,95589.0,95584.0,0.10284521]
[1732798667866,0.0004,95589.0,95585.0,0.01701092]
[1732798668119,0.0004,95589.0,95586.0,0.11331347]
[1732798668328,0.0004,95589.0,95588.0,0.19850756]
[1732798668543,0.0004,95589.0,95588.0,0.22632251]
[1732798668772,0.0004,95589.0,95588.0,0.22447113]
[1732798669231,0.0004,95589.0,95588.0,0.36530997]
[1732798669489,0.0004,95589.0,95588.0,0.36529969]
[1732798669710,0.0004,95589.0,95588.0,0.57104013]
[1732798669918,0.0004,95589.0,95588.0,0.57804013]
[1732798670125,0.0004,95589.0,95588.0,0.80577153]
[1732798670333,0.0004,95589.0,95588.0,0.57804013]
[1732798670795,0.0004,95589.0,95588.0,0.58004013]
[1732798671023,0.0004,95589.0,95588.0,0.82641018]
[1732798671282,0.0004,95589.0,95588.0,0.58967878]
[1732798671499,0.0004,95589.0,95588.0,0.59367878]
[1732798672195,0.0004,95589.0,95588.0,0.66257878]
[1732798672381,0.0004,95589.0,95588.0,0.84457878]
[1732798672862,0.0004,95589.0,95588.0,0.84557878]
[1732798673079,0.0004,95589.0,95588.0,0.89850594]
[1732798673342,0.0004,95589.0,95588.0,0.88950594]
[1732798673579,0.0004,95589.0,95588.0,0.89850594]
[1732798673794,0.0012618,95589.0,95588.0,0.93651294]
[1732798674008,0.0012618,95589.0,95588.0,0.92751294]
[1732798674219,0.0012618,95589.0,95588.0,0.58621678]
[1732798674451,0.0012618,95589.0,95588.0,0.93239084]
[1732798674692,0.0004,95609.0,95608.0,0.184593]
[1732798674934,0.0004,95609.0,95608.0,0.66302065]
[1732798675150,0.0004,95609.0,95608.0,1.01050477]
[1732798675371,0.0004,95609.0,95608.0,1.10088003]
[1732798675595,0.0004,95609.0,95608.0,0.91339591]
[1732798675881,0.0004,95609.0,95608.0,0.95365778]
[1732798676064,0.0004,95649.0,95630.0,0.023]
[1732798676313,0.0004,95649.0,95638.0,0.10456]
[1732798676552,0.0004,95649.0,95646.0,0.104551]
[1732798676795,0.0004,95649.0,95647.0,0.21971378]
[1732798677004,0.0004,95649.0,95648.0,0.01046826]
[1732798677252,0.0004,95649.0,95648.0,0.21971376]
[1732798677468,0.0004,95649.0,95648.0,0.21786347]
[1732798678110,0.0004,95649.0,95648.0,0.22440613]
[1732798679697,0.0004,95649.0,95648.0,0.23040613]
[1732798679931,0.0004,95649.0,95648.0,0.24447988]
[1732798680152,0.0004,95649.0,95648.0,0.23847988]
[1732798680394,0.0004,95649.0,95648.0,0.2551407]
[1732798680637,0.0004,95649.0,95648.0,0.2571407]
[1732798680850,0.0004,95649.0,95648.0,0.25712629]
[1732798681072,0.0004,95649.0,95648.0,0.25512629]
[1732798681758,0.0004,95649.0,95648.0,0.24205226]
[1732798681979,0.1520256,95660.0,95648.0,0.23605226]
[1732798682294,0.1520256,95660.0,95653.0,0.00929952]
[1732798682408,0.104547,95650.0,95649.0,0.11984144]
[1732798682628,0.00526533,95659.0,95648.0,0.002]
[1732798682629,0.104548,95649.0,95648.0,0.002]
[1732798682870,0.209092,95652.0,95648.0,0.02799815]
[1732798682871,0.082,95652.0,95648.0,0.02799815]
[1732798683098,0.082,95652.0,95648.0,0.011]
[1732798683099,0.10981333,95649.0,95648.0,0.011]
[1732798683328,0.10455,95648.0,95647.0,0.03]
[1732798683562,0.14955,95648.0,95647.0,0.04699878]
[1732798683777,0.14955,95648.0,95647.0,0.01699878]
[1732798683992,0.00526533,95648.0,95647.0,0.01699878]
[1732798684435,0.104548,95650.0,95647.0,0.01699878]
[1732798684650,0.00526533,95648.0,95641.0,0.01307539]
[1732798684892,0.254072,95661.0,95642.0,0.11984399]
[1732798685121,0.104543,95654.0,95643.0,0.12155378]
[1732798685348,0.104544,95653.0,95644.0,0.11984399]
[1732798685595,0.21434033,95659.0,95645.0,0.01699878]
[1732798685596,0.104543,95655.0,95645.0,0.01699878]
[1732798685825,0.10981133,95652.0,95646.0,0.01699878]
[1732798686043,0.104546,95652.0,95647.0,0.01699878]
[1732798686274,0.00526533,95651.0,95648.0,0.01699878]
[1732798686518,0.104547,95650.0,95649.0,0.01699878]
[1732798686777,0.00526533,95651.0,95649.0,0.01699878]
[1732798687017,0.2099398,95658.0,95649.0,0.01699878]
[1732798687018,0.0008618,95658.0,95651.0,0.104546]
[1732798687270,0.0008618,95658.0,95652.0,0.13568091]
[1732798687520,0.0008618,95658.0,95654.0,0.00929952]
[1732798687753,0.0008618,95658.0,95655.0,0.13291938]
[1732798687996,0.0008618,95658.0,95656.0,0.03007417]
[1732798688208,0.0008618,95658.0,95657.0,0.01699878]
[1732798688422,0.0008618,95658.0,95657.0,0.03007417]
[1732798688654,0.0008618,95658.0,95657.0,0.01699878]
[1732798689820,0.0008618,95658.0,95657.0,0.12153878]
[1732798690049,0.0008618,95658.0,95657.0,0.01799878]
[1732798690481,0.0008618,95658.0,95657.0,0.0272983]
[1732798690723,0.0008618,95658.0,95657.0,0.01799878]
[1732798691171,0.0008618,95658.0,95657.0,0.02977557]
[1732798692074,0.0008618,95658.0,95657.0,0.02877557]
[1732798692515,0.0008618,95658.0,95657.0,0.02977557]
[1732798692748,0.0008618,95658.0,95657.0,0.04184935]
[1732798692960,0.0008618,95658.0,95657.0,0.04284935]
[1732798693173,0.0008618,95658.0,95657.0,0.04884935]
[1732798693393,0.1054008,95658.0,95657.0,0.04884935]
[1732798693614,0.0008618,95658.0,95657.0,0.04884935]
[1732798693831,0.1054008,95658.0,95657.0,0.03707256]
[1732798694490,0.0008618,95658.0,95657.0,0.03707256]
[1732798695379,0.0008618,95658.0,95657.0,0.03107256]
[1732798695598,0.0008618,95658.0,95657.0,0.03407256]
[1732798695809,0.0008618,95658.0,95657.0,0.03007256]
[1732798696260,0.0008618,95658.0,95657.0,0.03607256]
[1732798696723,0.0008618,95658.0,95657.0,0.03707256]
[1732798696966,0.209065,95664.0,95657.0,0.03707256]
[1732798697200,0.104535,95662.0,95658.0,0.03007256]
[1732798697412,0.104535,95662.0,95659.0,0.03007256]
[1732798697663,0.209058,95667.0,95660.0,0.01699878]
[1732798697881,0.209035,95678.0,95661.0,0.016996]
[1732798698169,0.104539,95658.0,95657.0,0.007]
[1732798698399,0.104539,95658.0,95657.0,0.01799675]
[1732798698608,0.104539,95658.0,95657.0,0.03307135]
[1732798699064,0.104539,95658.0,95657.0,0.03007135]
[1732798699515,0.104539,95659.0,95657.0,0.03007135]
[1732798699724,0.104539,95658.0,95657.0,0.03007135]
[1732798699937,0.104538,95659.0,95658.0,0.03007117]
[1732798700162,0.104535,95662.0,95658.0,0.03007116]
[1732798700379,0.20906,95666.0,95659.0,0.03007116]
[1732798700612,0.209058,95667.0,95660.0,0.03007116]
[1732798700848,0.104534,95663.0,95661.0,0.01699675]
[1732798701078,0.104534,95662.0,95657.0,0.001]
[1732798701284,0.20906,95666.0,95658.0,0.03007085]
[1732798701507,0.104535,95662.0,95659.0,0.03007085]
[1732798701722,0.104534,95663.0,95660.0,0.01699657]
[1732798701962,0.104534,95663.0,95661.0,0.01699657]
[1732798702179,0.104534,95663.0,95662.0,0.01699657]
[1732798702396,0.209058,95667.0,95662.0,0.01699657]
[1732798702621,0.0471,95668.0,95654.0,0.00185023]
[1732798702622,0.0471,95668.0,95663.0,0.01699657]
[1732798702841,0.104534,95663.0,95659.0,0.004]
[1732798703048,0.104534,95663.0,95660.0,0.01699602]
[1732798703294,0.104534,95663.0,95661.0,0.01699602]
[1732798703507,0.209058,95667.0,95662.0,0.01999602]
[1732798703734,0.0471,95668.0,95662.0,0.01999602]
[1732798703735,0.20906,95666.0,95663.0,0.01699602]
[1732798703960,0.104532,95664.0,95663.0,0.01045909]
[1732798704086,0.104532,95664.0,95663.0,0.01699602]
[1732798705795,0.104532,95664.0,95663.0,0.01999602]
[1732798707045,0.104532,95664.0,95663.0,0.003]
[1732798707694,0.104529,95667.0,95663.0,0.003]
[1732798707924,0.0471,95668.0,95663.0,0.003]
[1732798708624,0.0471,95668.0,95664.0,0.016996]
[1732798708836,0.0471,95668.0,95665.0,0.016996]
[1732798709069,0.0471,95668.0,95657.0,0.209078]
[1732798709070,0.1288,95654.0,95644.0,0.09312785]
[1732798709319,0.1288,95654.0,95629.0,0.09312785]
[1732798709542,0.104547,95650.0,95636.0,0.104562]
[1732798709768,0.184947,95650.0,95615.0,0.09312785]
[1732798709990,0.1262,95650.0,95616.0,0.00185065]
[1732798710202,0.104568,95631.0,95617.0,0.10469599]
[1732798710435,0.1262,95647.0,95617.0,0.10469599]
[1732798710436,0.104571,95629.0,95617.0,0.10469599]
[1732798710667,0.1262,95647.0,95618.0,0.19770985]
[1732798710874,0.104569,95630.0,95619.0,0.10469605]
[1732798711085,0.104567,95632.0,95619.0,0.20927605]
[1732798711312,0.209108,95644.0,95620.0,0.15]
[1732798711525,0.209108,95644.0,95625.0,0.104574]
[1732798711526,0.1144739,95639.0,95625.0,0.104574]
[1732798711737,0.0099139,95639.0,95626.0,0.10469594]
[1732798711951,0.1262,95647.0,95626.0,0.10469594]
[1732798711952,0.104564,95635.0,95626.0,0.10284521]
[1732798712203,0.15128458,95640.0,95620.0,0.15]
[1732798712439,0.1262,95647.0,95618.0,0.10491716]
[1732798712440,0.104576,95624.0,95622.0,0.15]
[1732798712672,0.209119,95639.0,95612.0,0.09312785]
[1732798712910,0.11284521,95646.0,95613.0,0.10284521]
[1732798712911,0.209106,95645.0,95613.0,0.10284521]
[1732798713147,0.001,95639.0,95613.0,0.10284521]
[1732798713376,0.001,95639.0,95608.0,0.09349501]
[1732798713377,0.00166253,95638.0,95608.0,0.09349501]
[1732798713586,0.00166253,95638.0,95610.0,0.00185108]
[1732798713812,0.00166253,95638.0,95611.0,0.10284521]
[1732798713813,0.104589,95612.0,95611.0,0.10284521]
[1732798715625,0.104589,95612.0,95611.0,0.10484521]
[1732798715853,0.209164,95619.0,95611.0,0.10284521]
[1732798716075,0.209143,95628.0,95612.0,0.0018511]
[1732798716284,0.209139,95630.0,95613.0,0.20743221]
[1732798716503,0.0818,95637.0,95614.0,0.21102486]
[1732798716722,0.104573,95627.0,95616.0,0.104585]
[1732798716938,0.104573,95627.0,95615.0,0.10284521]
[1732798716939,0.104574,95626.0,95617.0,0.10469608]
[1732798717157,0.0099978,95633.0,95617.0,0.10469608]
[1732798717370,0.104575,95625.0,95617.0,0.30277409]
[1732798717577,0.104576,95624.0,95617.0,0.20927908]
[1732798717791,0.0486,95643.0,95618.0,0.104582]
[1732798718015,0.104576,95624.0,95619.0,0.10469601]
[1732798718274,0.104577,95623.0,95619.0,0.10469601]
[1732798718512,0.209104,95647.0,95619.0,0.10469601]
[1732798718724,0.0098163,95639.0,95619.0,0.10469601]
[1732798718936,0.104577,95623.0,95619.0,0.10469601]
[1732798719149,0.104577,95623.0,95620.0,0.01046273]
[1732798719362,0.104577,95623.0,95621.0,0.11330794]
[1732798719589,0.0496,95643.0,95622.0,0.01046273]
[1732798719590,0.104575,95625.0,95622.0,0.01046273]
[1732798719827,0.20913,95634.0,95623.0,0.11330794]
[1732798720037,0.104575,95625.0,95624.0,0.01231353]
[1732798720249,0.104575,95625.0,95624.0,0.11330794]
[1732798721236,0.104575,95625.0,95624.0,0.11984716]
[1732798721703,0.104575,95625.0,95624.0,0.12284716]
[1732798722174,0.209139,95630.0,95624.0,0.12284716]
[1732798722424,0.104572,95628.0,95625.0,0.11984716]
[1732798722667,0.104572,95628.0,95626.0,0.01700195]
[1732798722896,0.104572,95628.0,95627.0,0.11984716]
[1732798723681,0.104567,95632.0,95627.0,0.22441916]
[1732798723900,0.104568,95631.0,95628.0,0.01700195]
[1732798724153,0.0486,95643.0,95629.0,0.11984716]
[1732798724396,0.0486,95643.0,95630.0,0.01885264]
[1732798724633,0.0486,95643.0,95630.0,0.00185069]
[1732798724634,0.104568,95631.0,95630.0,0.00185069]
[1732798724864,0.104568,95631.0,95630.0,0.10938441]
[1732798725091,0.104568,95631.0,95630.0,0.11984713]
[1732798726061,0.104568,95631.0,95630.0,0.12284713]
[1732798729441,0.10623053,95631.0,95630.0,0.0095392]
[1732798729679,0.18143053,95631.0,95630.0,0.0095392]
[1732798730187,0.18143053,95631.0,95630.0,0.003]
[1732798731170,0.104599,95603.0,95602.0,0.0018511]
[1732798731425,0.104599,95603.0,95602.0,0.10938578]
[1732798731905,0.104599,95603.0,95602.0,0.00654057]
[1732798732618,0.104599,95603.0,95602.0,0.01254057]
[1732798733295,0.104599,95603.0,95602.0,0.01354057]
[1732798734954,0.104599,95603.0,95602.0,0.01526617]
[1732798735391,0.104598,95604.0,95602.0,0.01526617]
[1732798735639,0.104599,95603.0,95602.0,0.0087256]
[1732798735851,0.104599,95603.0,95602.0,0.0152664]
[1732798736560,0.104599,95603.0,95602.0,0.0142664]
[1732798737392,0.104599,95603.0,95602.0,0.0082664]
[1732798737850,0.104597,95605.0,95602.0,0.0092664]
[1732798738073,0.104592,95610.0,95603.0,0.10938601]
[1732798738297,0.104591,95611.0,95604.0,0.0065408]
[1732798738487,0.01149263,95622.0,95605.0,0.10938601]
[1732798738630,0.418322,95620.0,95606.0,0.0065408]
[1732798738857,0.104593,95608.0,95607.0,0.10938601]
[1732798739253,0.104593,95608.0,95607.0,0.10284521]
[1732798739634,0.104593,95608.0,95607.0,0.10938562]
[1732798739843,0.001,95611.0,95607.0,0.10938562]
[1732798740031,0.104593,95608.0,95607.0,0.10284521]
[1732798740265,0.104591,95610.0,95607.0,0.10938562]
[1732798740516,0.001,95611.0,95608.0,0.00654041]
[1732798740517,0.104593,95609.0,95608.0,0.00654041]
[1732798742024,0.104593,95609.0,95608.0,0.00954041]
[1732798743867,0.104593,95609.0,95608.0,0.00654041]
[1732798744074,0.209174,95614.0,95608.0,0.00654041]
[1732798744318,0.219101,95648.0,95609.0,0.00654041]
[1732798744319,0.104591,95610.0,95609.0,0.00654041]
[1732798745633,0.104591,95610.0,95609.0,0.01154041]
[1732798745856,0.209171,95616.0,95609.0,0.01254041]
[1732798746075,0.10459,95611.0,95610.0,0.00654041]
[1732798747384,0.10459,95611.0,95610.0,0.01054041]
[1732798748332,0.10459,95611.0,95610.0,0.004]
[1732798748542,0.209166,95618.0,95610.0,0.004]
[1732798748543,0.209166,95618.0,95610.0,0.01154055]
[1732798748750,0.104588,95614.0,95611.0,0.00654055]
[1732798748960,0.209155,95623.0,95610.0,0.005]
[1732798748961,0.209155,95623.0,95612.0,0.00654055]
[1732798749182,0.104587,95615.0,95613.0,0.00654055]
[1732798749429,0.104587,95615.0,95610.0,0.005]
[1732798749430,0.104586,95615.0,95610.0,0.10784521]
[1732798749624,0.209159,95621.0,95610.0,0.10784521]
[1732798749850,0.104589,95613.0,95610.0,0.10784521]
[1732798750069,0.104589,95613.0,95610.0,0.10384521]
[1732798750306,0.10459,95611.0,95610.0,0.10384521]
[1732798750505,0.10459,95611.0,95610.0,0.10284521]
[1732798750705,0.209176,95613.0,95610.0,0.10284521]
[1732798751133,0.10459,95611.0,95610.0,0.10584521]
[1732798751363,0.10459,95611.0,95610.0,0.10284521]
[1732798751776,0.10459,95611.0,95610.0,0.10584521]
[1732798752029,0.10459,95611.0,95610.0,0.10284521]
[1732798753565,0.10459,95611.0,95610.0,0.10584521]
[1732798755516,0.10459,95611.0,95610.0,0.19945788]
[1732798755988,0.10459,95611.0,95610.0,0.10584521]
[1732798756446,0.10459,95611.0,95610.0,0.20599826]
[1732798757112,0.10459,95611.0,95610.0,0.11238559]
[1732798757347,0.10459,95611.0,95610.0,0.20599826]
[1732798758033,0.10459,95611.0,95610.0,0.11238559]
[1732798758453,0.10459,95611.0,95610.0,0.00954038]
[1732798758673,0.10459,95611.0,95610.0,0.00954097]
[1732798759116,0.1054528,95611.0,95610.0,0.00954097]
[1732798759809,0.1054528,95611.0,95610.0,0.00654097]
[1732798760235,0.1054528,95611.0,95610.0,0.00854097]
[1732798761333,0.1064528,95611.0,95610.0,0.00854097]
[1732798762482,0.1064528,95611.0,95610.0,0.00854124]
[1732798764104,0.1560528,95611.0,95610.0,0.00854124]
[1732798766135,0.15771533,95611.0,95610.0,0.00854124]
[1732798768772,0.15771533,95611.0,95610.0,0.002]
[1732798769895,0.15771533,95611.0,95610.0,0.00854154]
[1732798770770,0.10811533,95611.0,95610.0,0.00854154]
[1732798775091,0.10811533,95611.0,95610.0,0.00854161]
[1732798775981,0.10811533,95611.0,95610.0,0.002]
[1732798782362,0.10811533,95611.0,95610.0,0.0037256]
[1732798786183,0.48776054,95611.0,95610.0,6e-07]
[1732798786408,0.264593,95608.0,95607.0,2e-07]
[1732798786670,0.49423821,95608.0,95607.0,2e-07]
[1732798787589,0.49523821,95608.0,95607.0,2e-07]
[1732798788261,0.49523821,95608.0,95575.0,0.09565102]
[1732798788262,0.114599,95603.0,95602.0,8e-07]
[1732798788499,0.49710674,95603.0,95602.0,8e-07]
[1732798788741,0.49544421,95603.0,95602.0,8e-07]
[1732798789652,0.49644421,95603.0,95602.0,8e-07]
[1732798790321,0.50044421,95603.0,95602.0,8e-07]
[1732798791250,0.51219723,95603.0,95602.0,8e-07]
[1732798800652,0.27135202,95603.0,95602.0,8e-07]
[1732798800864,0.109599,95603.0,95602.0,0.0792008]
[1732798801088,0.11126153,95603.0,95602.0,0.0792008]
[1732798801573,0.11126153,95603.0,95602.0,8e-07]
[1732798802719,0.10726153,95603.0,95602.0,8e-07]
[1732798803180,0.11026153,95603.0,95602.0,8e-07]
[1732798803403,0.11626153,95603.0,95602.0,8e-07]
[1732798803624,0.11226153,95603.0,95602.0,8e-07]
[1732798804060,0.11626153,95603.0,95602.0,8e-07]
[1732798804269,0.12126153,95603.0,95602.0,8e-07]
[1732798804508,0.11726153,95603.0,95602.0,8e-07]
[1732798804745,0.115599,95603.0,95602.0,0.0783008]
[1732798805410,0.115599,95603.0,95602.0,8e-07]
[1732798805655,0.11726153,95603.0,95602.0,8e-07]
[1732798805905,0.12126153,95603.0,95602.0,8e-07]
[1732798806349,0.11726153,95603.0,95602.0,8e-07]
[1732798806784,0.12026153,95603.0,95602.0,8e-07]
[1732798807024,0.10926153,95603.0,95602.0,8e-07]
[1732798807461,0.11126153,95603.0,95602.0,8e-07]
[1732798807682,0.11026153,95603.0,95602.0,8e-07]
[1732798807900,0.11526153,95603.0,95602.0,8e-07]
[1732798809025,0.11126153,95603.0,95602.0,8e-07]
[1732798809481,0.11526153,95603.0,95602.0,8e-07]
[1732798809956,0.11126153,95603.0,95602.0,8e-07]
[1732798810385,0.11526153,95603.0,95602.0,8e-07]
[1732798810607,0.11026153,95603.0,95602.0,8e-07]
[1732798811293,0.11526153,95603.0,95602.0,8e-07]
[1732798813673,0.26580674,95603.0,95602.0,8e-07]
[1732798813895,0.52334421,95603.0,95602.0,8e-07]
[1732798816008,0.51934421,95603.0,95602.0,8e-07]
[1732798816246,0.52334421,95603.0,95602.0,8e-07]
[1732798816474,0.55356683,95603.0,95602.0,8e-07]
[1732798816713,0.54456683,95603.0,95602.0,8e-07]
[1732798817186,0.55356683,95603.0,95602.0,8e-07]
[1732798817678,0.55356683,95603.0,95602.0,0.0017264]
[1732798818371,0.55356683,95603.0,95602.0,4e-07]
[1732798828141,0.66639829,95603.0,95602.0,4e-07]
[1732798828377,0.69893215,95603.0,95602.0,4e-07]
[1732798828599,0.8395341,95603.0,95602.0,4e-07]
[1732798828817,0.69893215,95603.0,95602.0,4e-07]
[1732798829251,0.58710069,95603.0,95602.0,4e-07]
[1732798829714,0.59610069,95603.0,95602.0,4e-07]
[1732798829976,0.01,95579.0,95575.0,0.0017236]
[1732798830170,0.104628,95576.0,95575.0,0.0017236]
[1732798830386,0.20913574,95576.0,95575.0,0.0017236]
[1732798831065,0.36913574,95576.0,95575.0,0.0017236]
[1732798831294,0.36747321,95576.0,95575.0,0.0017236]
[1732798832649,0.37847321,95576.0,95575.0,0.0017236]
[1732798834806,0.40147321,95576.0,95575.0,6e-07]
[1732798835477,0.53007321,95576.0,95575.0,6e-07]
[1732798835923,0.52307321,95576.0,95575.0,6e-07]
[1732798836145,0.53207321,95576.0,95575.0,6e-07]
[1732798836422,0.52807321,95576.0,95575.0,6e-07]
[1732798836876,0.53607321,95576.0,95575.0,0.0010006]
[1732798837085,0.52707321,95576.0,95575.0,0.001]
[1732798837297,0.104641,95564.0,95563.0,0.0017238]
[1732798837515,0.21914874,95564.0,95563.0,0.0017238]
[1732798837738,0.21748621,95564.0,95563.0,0.0017238]
[1732798839589,0.22883696,95564.0,95563.0,0.0017238]
[1732798839810,0.24283696,95564.0,95563.0,0.0037238]
[1732798840044,0.23383696,95564.0,95563.0,0.0027238]
[1732798840286,0.22883696,95564.0,95563.0,0.0017238]
[1732798840513,0.23783696,95564.0,95563.0,0.0037238]
[1732798840729,0.24383696,95564.0,95563.0,0.0027238]
[1732798840970,0.25283696,95564.0,95563.0,0.0037238]
[1732798842140,0.24683696,95564.0,95563.0,0.0027238]
[1732798842373,0.23383696,95564.0,95563.0,0.0027238]
[1732798842836,0.24283696,95564.0,95563.0,0.0037238]
[1732798843746,0.25683696,95564.0,95563.0,0.0027238]
[1732798844198,0.26583696,95564.0,95563.0,0.0037238]
[1732798847161,0.23283696,95564.0,95563.0,0.0037238]
[1732798847380,0.23283696,95564.0,95563.0,0.0787238]
[1732798848128,0.25235436,95564.0,95563.0,0.0787238]
[1732798848358,0.23283696,95564.0,95563.0,0.0037238]
[1732798848589,0.25235436,95564.0,95563.0,0.0037238]
[1732798850822,0.31659088,95564.0,95563.0,0.0037238]
[1732798854932,0.56942234,95564.0,95563.0,0.0037238]
[1732798855173,0.56942234,95564.0,95549.0,0.0017242]
[1732798855174,0.264652,95554.0,95549.0,0.0017242]
[1732798855604,0.56385113,95554.0,95549.0,0.0017242]
[1732798856082,0.55889113,95554.0,95549.0,0.0017242]
[1732798856595,0.287653,95553.0,95552.0,4e-07]
[1732798856837,0.4688569,95553.0,95552.0,4e-07]
[1732798857077,0.4688569,95553.0,95518.0,0.0777]
[1732798857078,0.264676,95532.0,95518.0,0.0777]
[1732798857308,0.38703861,95532.0,95518.0,0.0777]
[1732798857556,0.41827513,95532.0,95518.0,0.0777]
[1732798858277,0.44127513,95532.0,95514.0,0.001722]
[1732798858535,0.49873024,95532.0,95514.0,0.001722]
[1732798859070,0.48568935,95532.0,95514.0,0.001722]
[1732798859563,0.50011909,95532.0,95514.0,0.001722]
[1732798860010,0.50911909,95532.0,95514.0,0.001722]
[1732798860516,0.50011909,95532.0,95514.0,0.001722]
[1732798860754,1.20011909,95532.0,95514.0,0.001722]
[1732798861001,1.20611909,95532.0,95514.0,0.001722]
[1732798861480,1.21511909,95532.0,95514.0,0.001722]
[1732798861698,1.20211849,95532.0,95514.0,0.001722]
[1732798861937,1.19311849,95532.0,95514.0,0.001722]
[1732798862168,1.19311849,95532.0,95531.0,4e-07]
[1732798862392,0.287681,95528.0,95527.0,4e-07]
[1732798862615,0.59001159,95528.0,95527.0,4e-07]
[1732798862843,0.63403919,95528.0,95527.0,4e-07]
[1732798863593,0.53120773,95528.0,95527.0,4e-07]
[1732798863831,0.48718013,95528.0,95527.0,4e-07]
[1732798864055,0.49618013,95528.0,95527.0,4e-07]
[1732798864499,0.50318013,95528.0,95527.0,4e-07]
[1732798865478,0.45242621,95528.0,95527.0,4e-07]
[1732798865704,0.50298917,95528.0,95527.0,4e-07]
[1732798865931,0.52151482,95528.0,95527.0,4e-07]
[1732798866386,0.52151482,95528.0,95514.0,0.001722]
[1732798866387,0.01,95522.0,95514.0,0.001722]
[1732798866607,0.254695,95515.0,95514.0,0.001722]
[1732798866861,0.42120172,95515.0,95514.0,0.001722]
[1732798867054,0.37698714,95515.0,95514.0,0.001722]
[1732798867323,0.42120078,95515.0,95514.0,0.001722]
[1732798868258,0.27120078,95515.0,95514.0,0.001722]
[1732798868494,0.27520078,95515.0,95514.0,0.001722]
[1732798868746,0.21154021,95515.0,95514.0,0.001722]
[1732798868972,0.26686108,95515.0,95514.0,0.001722]
[1732798869207,0.29629714,95515.0,95514.0,0.001722]
[1732798869678,0.31268594,95515.0,95514.0,0.001722]
[1732798869901,0.44805296,95515.0,95514.0,0.001722]
[1732798870354,0.114698,95512.0,95511.0,4e-07]
[1732798870598,0.30583956,95512.0,95511.0,4e-07]
[1732798870894,0.30417703,95512.0,95511.0,4e-07]
[1732798871126,0.29107842,95512.0,95511.0,4e-07]
[1732798871349,0.104704,95507.0,95491.0,0.0494]
[1732798871604,0.36875539,95507.0,95506.0,4e-07]
[1732798871891,0.29108442,95507.0,95506.0,4e-07]
[1732798872114,0.30418476,95507.0,95506.0,4e-07]
[1732798872340,0.30416103,95507.0,95506.0,4e-07]
[1732798872581,0.40387713,95507.0,95506.0,4e-07]
[1732798873041,0.58136103,95507.0,95506.0,4e-07]
[1732798873268,0.01,95492.0,95473.0,0.0489]
[1732798873479,0.104733,95480.0,95473.0,0.0489]
[1732798873716,0.15690698,95480.0,95473.0,0.0489]
[1732798873936,0.12582301,95480.0,95473.0,0.0489]
[1732798874388,0.12582301,95480.0,95451.0,0.01152594]
[1732798874389,0.22866822,95480.0,95479.0,6e-07]
[1732798874655,0.22700569,95480.0,95479.0,6e-07]
[1732798874845,0.25808966,95480.0,95479.0,6e-07]
[1732798875513,0.26208966,95480.0,95479.0,6e-07]
[1732798875750,0.29079168,95480.0,95479.0,6e-07]
[1732798876205,0.30188826,95480.0,95479.0,6e-07]
[1732798876460,0.30188826,95480.0,95469.0,0.0824]
[1732798876461,0.104742,95472.0,95471.0,6e-07]
[1732798876680,0.22867722,95472.0,95471.0,6e-07]
[1732798876906,0.104758,95458.0,95457.0,6e-07]
[1732798877130,0.20926574,95458.0,95457.0,6e-07]
[1732798877350,0.25873411,95458.0,95457.0,6e-07]
[1732798877594,0.25707158,95458.0,95457.0,6e-07]
[1732798878048,0.31932481,95458.0,95457.0,6e-07]
[1732798878278,0.104764,95452.0,95451.0,6e-07]